Cogmind - Beta 11 X8 @@@ ROGUE MODE // 2021.10.25 @ 11:23:21 Player: whisper Result: Destroyed by P-70 Sage with High-powered Shock Rifle Performance ------------- Evolutions (5) 2500 Regions Visited (14) 2800 Robots Destroyed (110) 550 Value Destroyed (4062) 4062 Prototype IDs (16) 320 Alien Tech Used (0) 0 Bonus (2635) 2635 TOTAL SCORE: 12867 Bonus ------- High Alert Combat Kills 353 Follower Combat Kills 2069 Built Enhanced Grunts 300 Friendly Fire -87 Cogmind --------- Core Integrity 0/1000 Matter 1/300 Energy 98/100 System Corruption 0% Temperature Cool (0) Movement Core (50) Location -5/Factory Parts ------- > --- POWER (2) -------- (None) > --- PROPULSION (6) --- (None) > --- UTILITY (7) ------ (None) > --- WEAPON (2) ------- Plasma Sword > --- INVENTORY (5) ---- Experimental Sensor Array Phase Cannon Mini Grenade Launcher Long-range Missile Launcher Peak State ------------ > --- POWER ------------ Micro Fission Core Antimatter Reactor > --- PROPULSION ------- Improved Treads Armored Treads Armored Treads Advanced Treads Centrium Heavy Treads > --- UTILITY ---------- Advanced Heat Sink High-capacity Storage Unit Experimental Sensor Array Advanced Signal Interpreter Advanced Terrain Scan Processor Advanced Melee Analysis Suite Improved Medium Armor Plating > --- WEAPON ----------- Plasma Sword Plasma Sword > --- INVENTORY -------- Enhanced Nuclear Core Centrium Heavy Treads Advanced Heat Sink Improved Coolant Injector Large Storage Unit Improved Terrain Scanner Advanced Melee Analysis Suite Hardened Light Armor Plating Improved Medium Armor Plating Experimental Thermal Shield Phase Cannon Gauss Rifle Gauss Rifle KE Penetrator Improved KE Penetrator Bore Cannon Mini Grenade Launcher Long-range Missile Launcher [Rating: 98] Favorites ----------- Power Light Ion Engine Engine Light Ion Engine Power Core Micro Fission Core Reactor Antimatter Reactor Propulsion Light Treads Treads Light Treads Leg Improved Titanium Leg Wheel Compact Wheel Utility High-capacity Storage Unit Device Improved Heat Sink Storage High-capacity Storage Unit Processor Advanced Terrain Scan Processor Hackware Hacking Suite Protection Hardened Light Armor Plating Weapon Gauss Rifle Energy Gun Medium Laser Energy Cannon Phase Cannon Ballistic Gun Gauss Rifle Ballistic Cannon Flak Cannon Launcher Mini Grenade Launcher Impact Weapon Flail Slashing Weapon Great Axe Build | -11 -10 -10 -10 -9 -8 -7 -7 -7 -6 -6 -6 -6 -6 -5 ------- Run | Scr Mat Min Exi Min Mat Fac Low Low Fac Ext Cet Arc Hub Fac Slots Evolved 10 | . . . . . 4 2 . . 2 . . . . 2 Power 1 | . . . . . . 1 . . . . . . . . Propulsion 4 | . . . . . 2 1 . . . . . . . 1 Utility 5 | . . . . . 2 . . . 2 . . . . 1 Weapon . | . . . . . . . . . . . . . . . Parts Attached 183 | 6 5 3 . 1 29 11 20 3 33 22 1 4 20 25 Power 18 | 1 . . . . 2 2 2 . 6 2 . 1 2 . Engine 7 | 1 . . . . 1 1 1 . 2 1 . . . . Core 10 | . . . . . 1 1 1 . 4 1 . 1 1 . Reactor 1 | . . . . . . . . . . . . . 1 . Propulsion 51 | 2 2 2 . . 11 1 9 . 11 5 1 1 4 2 Treads 22 | . . 2 . . 6 . 2 . 1 3 1 1 4 2 Leg 21 | 2 2 . . . 5 1 5 . 5 1 . . . . Wheel 8 | . . . . . . . 2 . 5 1 . . . . Hover . | . . . . . . . . . . . . . . . Flight . | . . . . . . . . . . . . . . . Utility 68 | 1 3 1 . . 7 4 7 1 9 10 . 2 13 10 Device 41 | . 2 . . . 3 4 5 . 4 7 . . 9 7 Storage 6 | 1 1 1 . . 1 . . 1 1 . . . . . Processor 4 | . . . . . . . 1 . 1 1 . 1 . . Hackware 1 | . . . . . 1 . . . . . . . . . Protection 16 | . . . . . 2 . 1 . 3 2 . 1 4 3 Artifact . | . . . . . . . . . . . . . . . Weapon 46 | 2 . . . 1 9 4 2 2 7 5 . . 1 13 Energy Gun 6 | 1 . . . . 4 . . . 1 . . . . . Energy Cannon 3 | . . . . . . . . . . 1 . . 1 1 Ballistic Gun 22 | 1 . . . . 5 3 1 1 2 4 . . . 5 Ballistic Cannon 1 | . . . . 1 . . . . . . . . . . Launcher 4 | . . . . . . 1 . 1 1 . . . . 1 Special Weapon . | . . . . . . . . . . . . . . . Impact Weapon 1 | . . . . . . . . . 1 . . . . . Slashing Weapon 9 | . . . . . . . 1 . 2 . . . . 6 Piercing Weapon . | . . . . . . . . . . . . . . . Special Melee Weapon . | . . . . . . . . . . . . . . . Unidentified Prototypes 8 | . . . . . 3 . . . 1 . 1 . 1 2 Parts Lost 43 | . . . . 1 6 . 15 1 10 2 . . 2 6 Power 10 | . . . . . 2 . 4 . 1 1 . . 1 1 Propulsion 19 | . . . . . 3 . 7 1 6 . . . 1 1 Utility 8 | . . . . . 1 . 3 . 2 . . . . 2 Weapon 6 | . . . . 1 . . 1 . 1 1 . . . 2 Highest Loss Streak 12 | . . . . 1 2 . 12 1 6 2 . . 2 3 Average Slot Usage (%) 92 | . 95 100 100 100 96 100 77 78 92 99 94 93 91 84 Engine 4 | . 14 14 14 14 5 4 2 . 3 5 6 3 . . Core 4 | . . . . . 2 10 1 . 7 6 6 9 11 4 Treads 14 | . . 23 28 28 25 . 3 15 6 12 13 13 16 26 Leg 10 | . 28 4 . . 10 38 15 15 10 6 1 . . . Wheel 5 | . . . . . . . 9 2 11 13 13 13 9 . Device 12 | . 9 14 14 14 17 11 13 15 12 15 6 6 4 9 Storage 7 | . 14 14 14 14 9 7 7 7 6 6 6 6 6 4 Processor 8 | . . . . . . . 6 7 13 13 13 13 20 14 Protection 4 | . . . . . 7 7 1 . 4 4 13 13 7 5 Energy Gun 2 | . 14 14 14 14 5 . . . . . . . . . Ballistic Gun 9 | . 14 14 14 9 7 14 6 7 4 10 13 13 12 7 Slashing Weapon 1 | . . . . . . . 6 7 5 . . . . 2 Naked Turns 42 | . . . . . . . . . . . . . . 42 Heaviest Build 81 | 12 18 28 28 32 67 71 67 52 75 77 77 77 81 81 Greatest Support 165 | 20 20 40 40 40 82 90 90 40 40 32 32 32 146 165 Greatest Overweight (x) 5 | . . . . . 1 . 5 5 4 2 2 2 4 . Average Overweight (x) 1 | . . . . . . . 2 2 1 1 2 2 1 . Largest Inventory Capacity 20 | 8 10 15 15 15 20 20 20 20 20 20 20 20 20 20 Average Capacity 18 | 6 8 14 15 15 19 20 20 18 18 20 20 20 20 18 Most Carried 20 | 6 10 14 15 15 20 20 20 20 20 20 20 20 20 20 Average Carried 17 | 2 8 12 14 14 18 19 18 18 17 19 19 20 19 17 Final Capacity 20 | 8 10 15 15 15 20 20 20 15 20 20 20 20 20 5 Final Carried 20 | 6 10 14 15 14 20 20 20 15 20 20 20 20 20 4 Class Distribution -------------------- 56% | Scavenger-Mutant 31% | Mutant 9% | Scavenger-Skirmisher Dominant Class ---------------- Mutant | -10/Materials Mutant | -10/Mines Mutant | -10/Exiles Mutant | -9/Mines Scavenger-Mutant | -8/Materials Mutant | -7/Factory Scavenger-Mutant | -7/Lower Caves Mutant | -7/Lower Caves Scavenger-Mutant | -6/Factory Scavenger-Mutant | -6/Extension Scavenger-Mutant | -6/Cetus Scavenger-Mutant | -6/Archives Scavenger-Mutant | -6/Hub_04(d) Scavenger-Skirmisher | -5/Factory Resources | -11 -10 -10 -10 -9 -8 -7 -7 -7 -6 -6 -6 -6 -6 -5 ----------- Run | Scr Mat Min Exi Min Mat Fac Low Low Fac Ext Cet Arc Hub Fac Matter Collected 3529 | 183 253 . 60 32 969 337 260 10 447 253 56 54 352 263 Remotely . | . . . . . . . . . . . . . . . Salvage Created 5070 | . 427 . . 83 1484 426 606 29 1014 245 . 76 165 515 Parts 244 | . 33 . . 3 51 27 23 2 49 11 . 7 16 22 Haulers Intercepted 5 | . 2 . . . 3 . . . . . . . . . Recyclers Shooed 4 | . 1 . . . 2 . . . . . . . . 1 Parts Field Recycled . | . . . . . . . . . . . . . . . Retrieved Matter . | . . . . . . . . . . . . . . . Parts Self-Destructed 24 | . . . . . . . 24 . . . . . . . Prevented . | . . . . . . . . . . . . . . . Kills | -11 -10 -10 -10 -9 -8 -7 -7 -7 -6 -6 -6 -6 -6 -5 ------- Run | Scr Mat Min Exi Min Mat Fac Low Low Fac Ext Cet Arc Hub Fac Combat Hostiles Destroyed 84 | . 8 . . 2 30 7 10 4 12 4 . 1 2 4 Melee 19 | . . . . . . . 9 . 7 2 . . . 1 Guns 38 | . 8 . . . 15 4 1 1 2 1 . 1 2 3 Cannons 15 | . . . . 2 13 . . . . . . . . . AOE 10 | . . . . . 1 3 . 3 3 . . . . . Classes Destroyed 13 | . 4 . . 1 5 . 1 . 1 . . . 1 . Worker 3 | . . . . . . . . . . . . . 1 2 Builder 2 | . . . . . 1 . . . . . . . 1 . Hauler 5 | . 2 . . . 3 . . . . . . . . . Recycler 9 | . . . . . 3 2 . . 3 . . . . 1 Operator 3 | . . . . . 1 . . . 1 . . . 1 . Watcher 8 | . 2 . . . 3 . . . 1 . . . . 2 Swarmer 14 | . 3 . . . 1 3 . 4 3 . . . . . Grunt 40 | . 5 . . 1 25 . 4 . 2 1 . . 1 1 Brawler 2 | . . . . . . . 2 . . . . . . . Duelist 3 | . . . . 1 . . 2 . . . . . . . Sentry 15 | . . . . . 3 3 2 . 2 2 . 1 1 1 Hunter 7 | . . . . . 1 1 . . 3 . . . . 2 Programmer 3 | . . . . . . . . . 2 1 . . . . Best Kill Streak 7 | . 7 . . 2 7 3 6 4 4 1 . 1 1 4 Combat Bots Only 7 | . 7 . . 2 7 3 6 4 4 1 . 1 1 2 Max Kills in Single Turn 2 | . 2 . . 1 2 2 1 2 2 1 . 1 1 1 Gunslinging 1 | . 1 . . . . . . . . . . . . . Exploded 2 | . . . . . 1 2 . 2 2 . . . . . Melee 1 | . . . . . . . 1 . 1 1 . . . 1 Uniques/NPCs Destroyed . | . . . . . . . . . . . . . . . Combat | -11 -10 -10 -10 -9 -8 -7 -7 -7 -6 -6 -6 -6 -6 -5 -------- Run | Scr Mat Min Exi Min Mat Fac Low Low Fac Ext Cet Arc Hub Fac Damage Taken 10384 | . 281 . . 213 1844 740 1661 95 1358 592 . 19 749 2832 Core 2186 | . 33 . . 69 378 49 339 . 207 55 . . 49 1007 Absorbed by Shields 417 | . . . . . 171 218 . . 28 . . . . . Core Remaining (%) 59 | 100 . . . 59 31 . . 44 . . . . 63 . Volleys Fired 349 | . 42 . . 6 118 43 10 4 20 23 5 3 27 48 Largest 2 | . 2 . . 2 2 2 2 1 2 2 2 2 2 2 Hottest 122 | . 70 . . 94 122 50 50 33 93 90 56 56 90 98 Shots Fired 647 | . 84 . . 12 233 84 18 4 31 29 9 6 52 85 Gun 544 | . 84 . . 9 170 82 18 1 29 12 9 6 50 74 Cannon 96 | . . . . 3 63 . . . . 17 . . 2 11 Launcher 7 | . . . . . . 2 . 3 2 . . . . . Special . | . . . . . . . . . . . . . . . Kinetic 493 | . 42 . . 6 172 82 18 1 21 12 9 6 50 74 Thermal 139 | . 42 . . 6 61 . . . . 17 . . 2 11 Explosive 7 | . . . . . . 2 . 3 2 . . . . . Electromagnetic 8 | . . . . . . . . . 8 . . . . . Robot Hit Streak 17 | . 11 . . 7 17 8 8 8 9 5 8 7 9 15 Robot Miss Streak 8 | . 8 . . 4 4 3 2 . 5 1 1 . 5 6 Penetration Max 1 | . . . . . . . . . . . 1 . 1 1 Secondary Targets 6 | . 2 . . . 4 . . . . . . . . . Max Gunslinging Chain 1 | . 1 . . . 1 . . . . . . . . . Shots Hit Robots 540 | . 45 . . 9 186 56 42 3 53 36 8 5 29 68 Core Hits 267 | . 18 . . 7 115 18 15 6 42 10 3 2 11 20 Critical Kills 3 | . 1 . . . . . . . . . . . . 2 Critical Parts Destroyed 3 | . . . . . . . . . 1 1 . . . 1 Critical Strikes 20 | . 4 . . . 5 . 4 . 2 1 . . 1 3 Burn 8 | . 3 . . . 5 . . . . . . . . . Destroy 6 | . 1 . . . . . . . 1 . . . 1 3 Smash 1 | . . . . . . . . . . 1 . . . . Sever 5 | . . . . . . . 4 . 1 . . . . . Melee Attacks 113 | . . . . . . . 32 . 41 27 . . . 13 Impact 13 | . . . . . . . . . 3 10 . . . . Slashing 100 | . . . . . . . 32 . 38 17 . . . 13 Piercing . | . . . . . . . . . . . . . . . Sneak Attacks 2 | . . . . . . . . . 2 . . . . . Combat Hostiles . | . . . . . . . . . . . . . . . Follow-up Attacks 6 | . . . . . . . . . 1 5 . . . . Damage Inflicted 13101 | . 608 . . 141 3448 1130 1308 453 1968 1077 218 106 803 1841 Guns 6879 | . 608 . . 89 2126 920 227 20 415 215 218 106 774 1161 Cannons 1547 | . . . . 52 1172 . . . . 62 . . . 261 Explosions 999 | . . . . . 150 210 . 433 206 . . . . . Melee 3643 | . . . . . . . 1077 . 1347 800 . . . 419 Ramming 33 | . . . . . . . 4 . . . . . 29 . Kinetic 6862 | . 291 . . 89 2490 920 227 20 351 215 218 106 774 1161 Thermal 1650 | . 317 . . 52 958 . . . . 62 . . . 261 Explosive 849 | . . . . . . 210 . 433 206 . . . . . Electromagnetic 64 | . . . . . . . . . 64 . . . . . Impact 255 | . . . . . . . . . 56 199 . . . . Slashing 3388 | . . . . . . . 1077 . 1291 601 . . . 419 Piercing . | . . . . . . . . . . . . . . . Highest Corruption 3 | . . . . . 3 . 1 1 1 1 1 1 1 . Average Corruption 1 | . . . . . 3 . 1 1 1 1 1 1 1 . Corruption Purged . | . . . . . . . . . . . . . . . Effects 21 | . . . . . 9 . 4 . 1 3 2 . 2 . Message Errors 9 | . . . . . 3 . 2 . 1 2 1 . . . Matter Fused 2 | . . . . . 2 . . . . . . . . . Heat Flow Errors 2 | . . . . . 2 . . . . . . . . . Energy Discharges 2 | . . . . . . . . . . 1 . . 1 . Data Loss (minor) 3 | . . . . . . . 2 . . . . . 1 . Weapon Failures 3 | . . . . . 2 . . . . . 1 . . . Overload Shots . | . . . . . . . . . . . . . . . Overflow Damage 244 | . . . . . . . 68 47 103 26 . . . . Projectiles . | . . . . . . . . . . . . . . . Explosions 60 | . . . . . . . . 47 13 . . . . . Melee 184 | . . . . . . . 68 . 90 26 . . . . Knockbacks 34 | . . . . 1 32 . . . . 1 . . . . Impact 1 | . . . . . . . . . . 1 . . . . Kinetic 31 | . . . . 1 30 . . . . . . . . . Secondary 2 | . . . . . 2 . . . . . . . . . Self-Inflicted Damage 115 | . . . . . 38 . . . 77 . . . . . Shots 3 | . . . . . 1 . . . 2 . . . . . Rammed 3 | . . . . . . . . . . . . . 3 . Targets Rammed 5 | . . . . . . . 1 . . . . . 4 . Kicked 1 | . . . . . . . 1 . . . . . . . Crushed 1 | . . . . . . . . . . . . . 1 . Highest Temperature 360 | . 192 . . 15 173 360 67 . 96 208 . . 159 96 Average Temperature 77 | . 78 . . 9 50 167 30 . 43 99 . . 57 31 Received Heat Transfer 2583 | . 132 . . 30 749 156 561 . 130 174 . . 255 396 Effects 5 | . . . . . . 2 . . . 3 . . . . Shutdowns 1 | . . . . . . 1 . . . . . . . . Interference 3 | . . . . . . . . . . 3 . . . . Damage (minor) 1 | . . . . . . 1 . . . . . . . . Siege Activations . | . . . . . . . . . . . . . . . Robots Corrupted . | . . . . . . . . . . . . . . . Combat Hostiles . | . . . . . . . . . . . . . . . Parts Fried 2 | . . . . . . . . . 2 . . . . . Impact Corruptions 3 | . . . . . . . . . 1 2 . . . . Robots Melted 1 | . . . . . 1 . . . . . . . . . Combat Hostiles 1 | . . . . . 1 . . . . . . . . . Parts Melted 6 | . 2 . . 1 2 . . . . 1 . . . . Heat Transferred 4089 | . 1147 . . 148 2333 . . . . 74 . . . 387 Parts Sabotaged . | . . . . . . . . . . . . . . . Parts Stolen . | . . . . . . . . . . . . . . . Parts Stripped . | . . . . . . . . . . . . . . . Power Chain Reactions . | . . . . . . . . . . . . . . . Missiles Intercepted . | . . . . . . . . . . . . . . . Alert | -11 -10 -10 -10 -9 -8 -7 -7 -7 -6 -6 -6 -6 -6 -5 ------- Run | Scr Mat Min Exi Min Mat Fac Low Low Fac Ext Cet Arc Hub Fac Peak Influence 1607 | . 347 135 . 50 594 485 . . 453 480 268 265 1607 845 Initial 760 | . . 135 . . 19 270 . . 50 167 268 93 92 760 Average 348 | . 212 135 . 10 305 364 . . 199 232 234 219 671 738 Maximum Alert Level 5 | . 1 . . . 2 2 . . 2 2 1 1 5 3 Low Security (%) 29 | 100 27 100 . 100 19 . . . 55 39 1 37 19 . Level 1 43 | . 72 . . . 53 60 . . 41 56 98 62 40 . Level 2 15 | . . . . . 26 39 . . 2 3 . . 2 44 Level 3 8 | . . . . . . . . . . . . . 6 55 Level 4 2 | . . . . . . . . . . . . . 29 . Level 5 . | . . . . . . . . . . . . . . . High Security . | . . . . . . . . . . . . . . . Max Security . | . . . . . . . . . . . . . . . Squads Dispatched 33 | . 2 1 . . 7 1 . . 5 1 . . 10 6 Investigation 9 | . 2 1 . . 2 . . . 1 . . . 1 2 Extermination 3 | . . . . . . . . . 1 . . . 1 1 Reinforcement 15 | . . . . . 4 1 . . 1 1 . . 5 3 Assault 2 | . . . . . . . . . . . . . 2 . Garrison 4 | . . . . . 1 . . . 2 . . . 1 . Intercept . | . . . . . . . . . . . . . . . Construction Impeded 4 | . . . . . . . . . 1 1 . . 1 1 Haulers Reinforced . | . . . . . . . . . . . . . . . Active Scanning Responses . | . . . . . . . . . . . . . . . Cargo Convoy Interrupts . | . . . . . . . . . . . . . . . Stealth | -11 -10 -10 -10 -9 -8 -7 -7 -7 -6 -6 -6 -6 -6 -5 --------- Run | Scr Mat Min Exi Min Mat Fac Low Low Fac Ext Cet Arc Hub Fac Distress Signals 14 | . 3 . . . 3 . . . . 1 1 . 4 2 Communications Jammed . | . . . . . . . . . . . . . . . Distress Signals . | . . . . . . . . . . . . . . . Times Spotted 216 | . 17 . . 5 44 9 15 4 18 15 7 3 39 40 Peak Tracking Total 19 | . 6 . . 4 8 3 7 4 4 4 5 1 10 19 Tactical Retreats 14 | . . . . . 2 . 2 . 2 1 . . 2 5 Traps | -11 -10 -10 -10 -9 -8 -7 -7 -7 -6 -6 -6 -6 -6 -5 ------- Run | Scr Mat Min Exi Min Mat Fac Low Low Fac Ext Cet Arc Hub Fac Traps Triggered 7 | . 1 . . . 1 . . . 3 1 . . . 1 Indirectly . | . . . . . . . . . . . . . . . Trap Hack Attempts . | . . . . . . . . . . . . . . . Triggered . | . . . . . . . . . . . . . . . Disarmed . | . . . . . . . . . . . . . . . Reprogrammed . | . . . . . . . . . . . . . . . Reused . | . . . . . . . . . . . . . . . Traps Extracted . | . . . . . . . . . . . . . . . Installed . | . . . . . . . . . . . . . . . Triggered . | . . . . . . . . . . . . . . . Machines | -11 -10 -10 -10 -9 -8 -7 -7 -7 -6 -6 -6 -6 -6 -5 ---------- Run | Scr Mat Min Exi Min Mat Fac Low Low Fac Ext Cet Arc Hub Fac Machines Disabled 10 | . . . . . 3 . . . 2 . . 2 3 . Max in Single Turn 2 | . . . . . 2 . . . 1 . . . 1 . Garrison Access 2 | . . . . . . . . . 1 . . . 1 . Machines Sabotaged . | . . . . . . . . . . . . . . . Garrisons Compromised . | . . . . . . . . . . . . . . . Overloaded Fab Kills . | . . . . . . . . . . . . . . . Hacking | -11 -10 -10 -10 -9 -8 -7 -7 -7 -6 -6 -6 -6 -6 -5 --------- Run | Scr Mat Min Exi Min Mat Fac Low Low Fac Ext Cet Arc Hub Fac Machines Accessed 52 | . 4 1 1 . 4 4 1 . 6 19 1 . 6 5 Terminals 38 | . 2 . . . 1 4 . . 4 19 1 . 5 2 Fabricators 1 | . . . . . . . . . . . . . . 1 Repair Stations 3 | . . . . . 1 . . . 1 . . . . 1 Recycling Units 4 | . 2 . . . 1 . . . . . . . . 1 Scanalyzers 1 | . . . . . 1 . . . . . . . . . Garrison Access 2 | . . . . . . . . . 1 . . . 1 . Total Hacks 129 | . 19 1 1 . 13 14 1 . 11 40 2 . 17 10 Successful 80 | . 13 1 1 . 9 8 1 . 6 25 . . 10 6 Failed 48 | . 6 . . . 4 6 . . 5 14 2 . 7 4 Catastrophic 5 | . . . . . . 1 . . 1 . 1 . 1 1 Database Lockouts 1 | . . . . . . . . . . 1 . . . . Manual 64 | . 15 . . . 6 9 . . 3 16 1 . 9 5 Terminals 105 | . 16 . . . 5 14 . . 8 40 2 . 15 5 Fabricators 3 | . . . . . . . . . . . . . . 3 Repair Stations 5 | . . . . . 2 . . . 2 . . . . 1 Recycling Units 5 | . 3 . . . 1 . . . . . . . . 1 Scanalyzers 5 | . . . . . 5 . . . . . . . . . Garrison Access 3 | . . . . . . . . . 1 . . . 2 . Terminal Hacks 40 | . 6 1 1 . 1 4 1 . 2 16 . . 6 2 Record 2 | . . . 1 . . . . . . 1 . . . . Robot Analysis 3 | . 2 . . . . . . . . 1 . . . . Prototype ID Bank 4 | . . . . . . . . . . 3 . . 1 . Open Door 12 | . . 1 . . . . 1 . 1 9 . . . . Open DSF 2 | . . . . . . 1 . . . . . . . 1 Branch Access Points 1 | . . . . . . 1 . . . . . . . . Terminal Index 4 | . . . . . 1 1 . . . 1 . . 1 . Locate Traps 6 | . 2 . . . . 1 . . 1 1 . . 1 . Transport Status 1 | . 1 . . . . . . . . . . . . . Recall Investigation 1 | . . . . . . . . . . . . . 1 . Zone Layout 4 | . 1 . . . . . . . . . . . 2 1 Fabricator Hacks 1 | . . . . . . . . . . . . . . 1 Network Status 1 | . . . . . . . . . . . . . . 1 Repair Station Hacks 3 | . . . . . 1 . . . 2 . . . . . Scan Component 2 | . . . . . 1 . . . 1 . . . . . Repair 1 | . . . . . . . . . 1 . . . . . Recycling Unit Hacks 2 | . 1 . . . . . . . . . . . . 1 Report Inventory 2 | . 1 . . . . . . . . . . . . 1 Scanalyzer 3 | . . . . . 3 . . . . . . . . . Insert Component 1 | . . . . . 1 . . . . . . . . . Analyze 2 | . . . . . 2 . . . . . . . . . Garrison Access Hacks . | . . . . . . . . . . . . . . . Unauthorized Hacks 31 | . 6 . . . 4 4 . . 2 9 . . 4 2 Terminals 24 | . 4 . . . 3 4 . . 1 9 . . 3 . Track 6 | . 2 . . . 1 1 . . . 2 . . . . Assimilate 3 | . . . . . 1 1 . . . 1 . . . . Botnet 10 | . 1 . . . . 1 . . 1 5 . . 2 . Operators 5 | . 1 . . . 1 1 . . . 1 . . 1 . Fabricators 1 | . . . . . . . . . . . . . . 1 Haulers 1 | . . . . . . . . . . . . . . 1 Repair Stations 1 | . . . . . . . . . . . . . . 1 Mechanics 1 | . . . . . . . . . . . . . . 1 Recycling Units 3 | . 2 . . . 1 . . . . . . . . . Tunnel 3 | . 2 . . . 1 . . . . . . . . . Scanalyzers . | . . . . . . . . . . . . . . . Garrison Access 2 | . . . . . . . . . 1 . . . 1 . Jam 2 | . . . . . . . . . 1 . . . 1 . Data Cores Recovered . | . . . . . . . . . . . . . . . Used . | . . . . . . . . . . . . . . . Hacking Detections 35 | . 2 . . . 3 3 . . 3 14 1 . 6 3 Full Trace Events 2 | . . . . . 1 . . . . . . . . 1 Feedback Events . | . . . . . . . . . . . . . . . Feedback Blocked . | . . . . . . . . . . . . . . . Robot Schematics Acquired . | . . . . . . . . . . . . . . . Robots Built . | . . . . . . . . . . . . . . . Authchips . | . . . . . . . . . . . . . . . Time . | . . . . . . . . . . . . . . . Total Robot Build Rating . | . . . . . . . . . . . . . . . Part Schematics Acquired . | . . . . . . . . . . . . . . . Parts Built . | . . . . . . . . . . . . . . . Authchips . | . . . . . . . . . . . . . . . Time . | . . . . . . . . . . . . . . . Total Part Build Rating . | . . . . . . . . . . . . . . . Parts Repaired 1 | . . . . . . . . . 1 . . . . . Time 108 | . . . . . . . . . 108 . . . . . Parts Recycled . | . . . . . . . . . . . . . . . Recycled Matter . | . . . . . . . . . . . . . . . Retrieved Matter . | . . . . . . . . . . . . . . . Retrieved Components . | . . . . . . . . . . . . . . . Parts Scanalyzed 1 | . . . . . 1 . . . . . . . . . Part Schematics Acquired . | . . . . . . . . . . . . . . . Parts Damaged . | . . . . . . . . . . . . . . . Bothacking | -11 -10 -10 -10 -9 -8 -7 -7 -7 -6 -6 -6 -6 -6 -5 ------------ Run | Scr Mat Min Exi Min Mat Fac Low Low Fac Ext Cet Arc Hub Fac Used RIF Installer . | . . . . . . . . . . . . . . . Robots Hacked . | . . . . . . . . . . . . . . . Non-combat . | . . . . . . . . . . . . . . . Combat . | . . . . . . . . . . . . . . . Robot Hacks Applied . | . . . . . . . . . . . . . . . Relay Couplers Released . | . . . . . . . . . . . . . . . Robots Rewired 8 | . . . . . . . . . . 8 . . . . Allies Hacked . | . . . . . . . . . . . . . . . Hacks Repelled . | . . . . . . . . . . . . . . . Allies | -11 -10 -10 -10 -9 -8 -7 -7 -7 -6 -6 -6 -6 -6 -5 -------- Run | Scr Mat Min Exi Min Mat Fac Low Low Fac Ext Cet Arc Hub Fac Total Allies 31 | . . . . . . 1 . . . 25 5 . . . Largest Group 19 | . . . . . . 1 . . . 19 17 10 9 . Highest-Rated Group 799 | . . . . . . 10 . . . 667 799 553 515 . Highest-Rated Ally 159 | . . . . . . 10 . . . 159 159 95 95 . Total Orders 4 | . . . . . . . . . . 2 2 . . . STAY 2 | . . . . . . . . . . 1 1 . . . FOLLOW 2 | . . . . . . . . . . 1 1 . . . Ally Attacks 298 | . . . . . . . . . . 93 51 29 125 . Total Damage 7294 | . . . . . . . . . . 1813 1023 654 3804 . Kills 55 | . . . . . . . . . . 15 5 3 32 . Allies Corrupted . | . . . . . . . . . . . . . . . Allies Melted 2 | . . . . . . . . . . 1 . . 1 . Intel | -11 -10 -10 -10 -9 -8 -7 -7 -7 -6 -6 -6 -6 -6 -5 ------- Run | Scr Mat Min Exi Min Mat Fac Low Low Fac Ext Cet Arc Hub Fac Robot Analysis Total 3 | . 2 . . . . . . . . 1 . . . . Derelict Logs Recovered 2 | . . . . . . . 2 . . . . . . . Drone Launches . | . . . . . . . . . . . . . . . Drone Recoveries . | . . . . . . . . . . . . . . . Exploration | -11 -10 -10 -10 -9 -8 -7 -7 -7 -6 -6 -6 -6 -6 -5 ------------- Run | Scr Mat Min Exi Min Mat Fac Low Low Fac Ext Cet Arc Hub Fac Turns Passed 7194 | 71 343 267 294 54 1133 485 807 146 954 967 258 91 466 858 Spaces Moved 3810 | 49 156 167 183 21 459 275 519 68 526 515 90 51 241 490 Core 144 | 4 . . . . . . . . . . . . . 140 Treads 1113 | . . 136 183 21 306 . . 39 37 . . . 41 350 Legs 705 | 45 156 31 . . 153 275 45 . . . . . . . Wheels 1848 | . . . . . . . 474 29 489 515 90 51 200 . Hover . | . . . . . . . . . . . . . . . Flight . | . . . . . . . . . . . . . . . Fastest Speed 50 | 50 120 120 160 160 130 128 110 155 115 115 130 130 130 50 Average Speed 134 | 114 120 152 160 160 147 128 126 181 127 129 130 130 135 129 Slowest Speed 330 | 120 120 160 160 160 235 128 330 240 160 130 130 130 162 161 Overloaded Moves . | . . . . . . . . . . . . . . . Propulsion Burnouts . | . . . . . . . . . . . . . . . Robots Hopped . | . . . . . . . . . . . . . . . Cave-ins Triggered . | . . . . . . . . . . . . . . . Exploration Rate (%) 32 | 4 39 32 55 8 35 9 68 13 11 56 48 65 29 19 Regions Visited 14 Branch Regions 9 Pre-discovered Areas 5 | . 2 1 1 . 1 . . . . . . . . . Known Exits Taken 4 | . . . . . . 1 1 . . . . 1 1 . Unknown Exits Taken 10 | 1 1 1 1 1 1 . . 1 1 1 1 . . . Scrap Searched 2 | . . . . . . . 2 . . . . . . . Spaces Dug 22 | . . . . . . . . . 2 14 . . 2 4 Terrain Destroyed 104 | . . . . . 30 17 . . 24 16 . 1 3 13 Melee 6 | . . . . . . . . . 2 . . . . 4 Projectile 30 | . . . . . . . . . 1 16 . 1 3 9 AOE 68 | . . . . . 30 17 . . 21 . . . . . Terrain Rammed . | . . . . . . . . . . . . . . . Walls Destroyed . | . . . . . . . . . . . . . . . Machines Disabled . | . . . . . . . . . . . . . . . Actions | -11 -10 -10 -10 -9 -8 -7 -7 -7 -6 -6 -6 -6 -6 -5 --------- Run | Scr Mat Min Exi Min Mat Fac Low Low Fac Ext Cet Arc Hub Fac Total 5162 | 61 229 179 185 30 723 357 615 88 714 757 225 74 321 604 Wait 397 | . 13 . . 1 55 15 20 9 37 82 118 8 22 17 Move 3797 | 48 155 166 182 20 458 274 518 67 525 514 89 50 241 490 Hop . | . . . . . . . . . . . . . . . Pick Up 110 | 7 8 7 2 1 31 6 11 . 19 5 4 3 1 5 Fast Attach 56 | 5 1 . . . 11 2 7 . 15 5 1 1 5 3 Attach 32 | 1 . . . 1 8 2 8 . 4 1 . . 1 6 Detach 13 | . . . . . 4 1 . . 2 1 1 . 2 2 Swap 95 | . 4 3 . . 10 7 5 3 14 16 . 3 14 16 Drop 104 | . 6 3 1 1 28 7 3 5 16 12 7 6 5 4 Fire 349 | . 42 . . 6 118 43 10 4 20 23 5 3 27 48 Melee 107 | . . . . . . . 32 . 40 22 . . . 13 Ram . | . . . . . . . . . . . . . . . Kick 1 | . . . . . . . 1 . . . . . . . Crush 3 | . . . . . . . . . . . . . 3 . Escape Stasis 30 | . . . . . . . . . 22 8 . . . . Rewire 68 | . . . . . . . . . . 68 . . . . Trap . | . . . . . . . . . . . . . . . Miscellaneous . | . . . . . . . . . . . . . . . Route ------- -11/Scrapyard -10/Materials (discovered 2 exits: [*Mat] / *Min) -10/Mines (discovered 2 exits: [*Mat] / *Exi) -10/Exiles (discovered 2 exits: [*Min x2]) -9/Mines -8/Materials -7/Factory (discovered 2 exits: *Low x2) -7/Lower Caves -7/Lower Caves -6/Factory -6/Extension (discovered 2 exits: *Fac / *Cet) -6/Cetus -6/Archives -6/Hub_04(d) (discovered 2 exits: *Fac x2) -5/Factory History --------- Turn | Location | Event 2 | -11/Scrapyard | Discovered new exit (range 16) 72 | -11/Scrapyard | Entered Materials 187 | -10/Materials | Destroyed 7 combat bots 245 | -10/Materials | Discovered new exit (range 15) 319 | -10/Materials | Build established: Mutant 372 | -10/Materials | Discovered new exit (range 15) 415 | -10/Materials | Entered Mines 423 | -10/Mines | Discovered new exit (range 6) 429 | -10/Mines | Met a Derelict bent on vengeance 448 | -10/Mines | Met a Derelict shopkeep closing up shop 511 | -10/Mines | Found a damaged Exp. Sensor Array with a note attached 514 | -10/Mines | Found Prototype Device 675 | -10/Mines | Deemed a non-threat by the Exiles lab entrance 675 | -10/Mines | Discovered new exit (range 5) 682 | -10/Mines | Entered Exiles 708 | -10/Exiles | Discovered new exit (range 14) 735 | -10/Exiles | Met 8R-AWN 762 | -10/Exiles | Met EX-HEX 850 | -10/Exiles | Met EX-DEC 879 | -10/Exiles | Learned location of Zion (-6) 955 | -10/Exiles | Discovered new exit (range 14) 976 | -10/Exiles | Entered Mines 996 | -9/Mines | Discovered new exit (range 7) 1030 | -9/Mines | Entered Materials 1030 | -8/Materials | Evolved 4 slots: Propulsion x2, Utility x2 1319 | -8/Materials | Identified Exp. Sensor Array 1455 | -8/Materials | Build established: Scavenger-Mutant 1818 | -8/Materials | Core integrity fell below 50% 1851 | -8/Materials | Destroyed 7 combat bots 2045 | -8/Materials | Discovered new exit (range 16) 2073 | -8/Materials | Garrison activated, responded to threat 2144 | -8/Materials | Build established: Mutant 2163 | -8/Materials | Entered Factory 2163 | -7/Factory | Evolved 2 slots: Power x1, Propulsion x1 2257 | -7/Factory | Identified exit to Lower Caves 2648 | -7/Factory | Entered Lower Caves 2667 | -7/Lower Caves | Attracted the attention of an 0b10 outpost 2806 | -7/Lower Caves | Lost 12 parts (3p5n3u1w) 2822 | -7/Lower Caves | Learned Factory machine intel 3184 | -7/Lower Caves | Attracted the attention of an 0b10 checkpoint 3242 | -7/Lower Caves | Build established: Scavenger-Mutant 3243 | -7/Lower Caves | Core integrity fell below 50% 3273 | -7/Lower Caves | Lost 3 parts (1p2n) 3341 | -7/Lower Caves | Identified exit to Lower Caves 3455 | -7/Lower Caves | Entered another Lower Caves area 3462 | -7/Lower Caves | Discovered new exit (range 11) 3601 | -7/Lower Caves | Entered Factory 3601 | -6/Factory | Evolved 2 slots: Utility x2 3602 | -6/Factory | Loaded intel: 234 machine locations 3797 | -6/Factory | Spotted B-75 Beast 3830 | -6/Factory | Repaired Exp. Sensor Array? 3950 | -6/Factory | Garrison activated, responded to threat 4053 | -6/Factory | Lost 6 parts (1p3n1u1w) 4155 | -6/Factory | Lost 3 parts (2n1u) 4505 | -6/Factory | Discovered new exit (range 15) 4555 | -6/Factory | Entered Extension 4923 | -6/Extension | Rescued a captive Derelict 4924 | -6/Extension | Rescued a captive Derelict 4937 | -6/Extension | Rescued a captive Derelict 4938 | -6/Extension | Rescued a captive Derelict 5107 | -6/Extension | Rescued a captive Derelict 5107 | -6/Extension | Rescued a captive Derelict 5162 | -6/Extension | Rescued a captive Derelict 5163 | -6/Extension | Rescued a captive Derelict 5268 | -6/Extension | Rescued a captive Derelict 5268 | -6/Extension | Rescued a captive Derelict 5303 | -6/Extension | Central database locked down 5355 | -6/Extension | Rescued a captive Derelict 5356 | -6/Extension | Rescued a captive Derelict 5397 | -6/Extension | Rescued A7 5423 | -6/Extension | Rescued a captive Derelict 5424 | -6/Extension | Rescued a captive Derelict 5438 | -6/Extension | Rescued a captive Derelict 5476 | -6/Extension | Discovered new exit (range 10) 5478 | -6/Extension | Discovered new exit (range 6) 5522 | -6/Extension | Entered Cetus 5522 | -6/Cetus | Accompanied by 17 allies (A7) 5527 | -6/Cetus | Acquired a Cetus Manufacturing Module code from A7 5539 | -6/Cetus | Spotted Cetus Guard 5539 | -6/Cetus | Spotted Cetus Guard 5543 | -6/Cetus | Spotted Cetus Guard 5549 | -6/Cetus | Spotted Cetus Guard 5552 | -6/Cetus | Allies destroyed Cetus Guard 5557 | -6/Cetus | Allies destroyed Cetus Guard 5566 | -6/Cetus | Allies destroyed Cetus Guard 5569 | -6/Cetus | Allies destroyed Cetus Guard 5629 | -6/Cetus | Started Cetus Manufacturing Module 5651 | -6/Cetus | Discovered new exit (range 16) 5654 | -6/Cetus | Manufactured an Enhanced Grunt 5679 | -6/Cetus | Manufactured an Enhanced Grunt 5704 | -6/Cetus | Manufactured an Enhanced Grunt 5729 | -6/Cetus | Manufactured an Enhanced Grunt 5754 | -6/Cetus | Manufactured an Enhanced Grunt 5780 | -6/Cetus | Entered Archives 5780 | -6/Archives | Accompanied by 11 allies (A7) 5827 | -6/Archives | Discovered new exit (range 15) 5871 | -6/Archives | Identified exit to Hub_04(d) 5871 | -6/Archives | Entered Hub_04(d) 5871 | -6/Hub_04(d) | Accompanied by 9 allies 6152 | -6/Hub_04(d) | Garrison activated, responded to threat 6154 | -6/Hub_04(d) | Discovered new exit (range 15) 6221 | -6/Hub_04(d) | First assault squad dispatched 6283 | -6/Hub_04(d) | Found Prototype Device 6283 | -6/Hub_04(d) | Identified Exp. Thermal Shield 6287 | -6/Hub_04(d) | Discovered new exit (range 5) 6306 | -6/Hub_04(d) | Identified exit to Factory 6337 | -6/Hub_04(d) | Entered Factory 6337 | -5/Factory | Evolved 2 slots: Propulsion x1, Utility x1 7103 | -5/Factory | Lost 3 parts (1p1u1w) 7118 | -5/Factory | Released all parts (14) 7142 | -5/Factory | Core integrity fell below 50% 7175 | -5/Factory | Core integrity fell below 20% 7195 | -5/Factory | Destroyed by P-70 Sage with High-powered Shock Rifle Last Messages --------------- 07157_ Connecting with Terminal... >>Layout(Zone) Retrieving Zone 4B layout... Downloaded map data. 07157_ ALERT: Suspicious activity at Terminal F014. Dispatching Investigation squad. 07163_ G-67 Veteran suffers critical hit (Burn). 07171_ ALERT: Rogue bot located, Programmers report to Factory Zone 6V. 07172_ U-05 Engineer builds a Wall. 07174_ U-05 Engineer builds a Door. 07177_ Critical hit (Burn: +37). 07181_ Triggered Alarm Trap. 07181_ An alarm sounds. 07181_ ALERT: Alarm triggered, dispatching investigation squad. 07181_ Critical hit (Burn: +37). 07184_ U-05 Engineer lays Concrete. 07185_ K-01 Serf cleans the Recycling Unit. 07186_ U-05 Engineer lays Concrete. 07188_ K-01 Serf destroyed. 07190_ K-01 Serf collects debris. [Achievement: Back For More] Map ----- +----------------------------------------------------+ | ?????????????A???????????????????????????????????? | | ?????????????????????????????????????????????????? | | ?????????????????????????????????????????????????? | | ?????????????????????????????????????????????????? | | ?????????????????????????????????????????????????? | | ?????????????????????????????????????????????????? | | ?????????????????????????????????????????????????? | | ?????????????????????????????????????????????????? | | ?????????????????????????????????????????????????? | | ?????????????????????????????????????????????????? | | ??????????????????????????? ?????????????????????? | | ??????????????????????????? #???????????????????? | | ?????????????????????????? #???????????????????? | | ?????????????????????????? #???????????????????? | | ????????????????????""???? #???????????????????? | | ????????????????????"" ??? #???????????????????? | | ????????????????????? #???????????????????? | | ?????????????????????" """ #???????????????????? | | ?????????????????????? """ #???????????????????? | | ?????????????????????? """ #???????????????????? | | ??????????????????????? #???????????????????? | | ??????????????????????? #???????????????????? | | ???????????????????????# #???????????????????? | | ???????????????????????# #???????????????????? | | ???????????????????????# #???????????????????? | | ???????????????????????# @ #???????????????????? | | ???????????????????????# #???????????????????? | | ???????????????????????# #???????????????????? | | ???????????????????????# #???????????????????? | | ???????????????????????# #??????????????????? | | ???????????????????????# #??????????????????" | | ???????????????????????# #?????????????????? | | ???????????????????????# #??????????????????" | | ???????????????????????# #??????????????????" | | ???????????????????????# pu #??????????????????" | | ???????????????????????# #??????????????????? | | ???????????????????????# #???????####????????? | | ???????????????????????# #########T ########## | | ???????????????????????#p * | | ??????????????????" "" + =%! A | | ???????????????? m# " " "" | | ??????????????? """ # " " Y" | | ???????????????? """ ?# " " "" | | ??????????????????""" ?### " " ##########+### | | ?????????????????? ????# " " #??????? ? | | ??????????????????##?????# " " #????? | | ?????????????????????????# " " #???# | | ?????????????????????????# " " #???# | | ?????????????????????????# " " #???# """ """ | | ????????????????????????? #???# """ """ | +----------------------------------------------------+ Best States ------------- Heat Dissipation 65 Energy Generation 34 Energy Capacity 490 Matter Stores 300 Matter Capacity 300 Sight Range 16 Robot Scan Range 20 Terrain Scan Range 16 Terrain Scan Density 210 ECM Strength 2 Armor Coverage 375 Resistance: TH 10 Resistance: EM 15 Melee Speed Boost 20 Evasion (%) 55 Melee Accuracy 8 Recoil Reduction 6 Offensive Hacking 10 Item Schematics ----------------- None Robot Schematics ------------------ None Fabricated ------------ Nothing Alien Tech Used ----------------- None Achievements -------------- Back For More Challenges ------------ None Game ------ Seed DiametricGravitonNullifier Manual? 0 Play Time 02:48:40 Cumulative 135.9 hours Start 2021.10.21 @ 15:24:18 End 2021.10.25 @ 11:23:21 Sessions 9 Manual Loads 0 Difficulty Rogue Special Mode None Game No. 50 Rogue 50 Adventurer 0 Explorer 0 Win Type - Total 4 Types 3/0/0/1/0/0/0/0/0 Lore% 59 Gallery% 67 Achievement% 54 Wizard Run 0 Options --------- ASCII 1 Keyboard 1 Movement Vi Keybinds 0 Fullscreen 1 Font 20/CogTall Map View 98x62 Tactical HUD 1 Map Filters NONE Filters NONE Steam 1 RUN: eff84756-5c09-44c9-90b4-0e581eccf5b8